fUSD/lending_fUSD_20240317
["ID","MTS","AMOUNT","RATE_DAILY","PERIOD"]
[319322236,1710658462575,-1768.8781,0.00014,2]
[319322237,1710658463186,-2000.0,0.00014,2]
[319322238,1710658463348,-2000.0,0.00014,2]
[319322239,1710658463775,-2000.0,0.00014,2]
[319322240,1710658464210,-2000.0,0.00014,2]
[319322241,1710658464545,-2000.0,0.00014,2]
[319322242,1710658464960,-2000.0,0.00014,2]
[319322243,1710658465384,-2000.0,0.00014,2]
[319322244,1710658465748,-2000.0,0.00014,2]
[319322245,1710658466126,-2000.0,0.00014,2]
[319322246,1710658466523,-2000.0,0.00014,2]
[319322247,1710658466930,-2000.0,0.00014,2]
[319322248,1710658467260,-2000.0,0.00014,2]
[319322249,1710658467703,-2000.0,0.00014,2]
[319322250,1710658469205,-2000.0,0.00014,2]
[319322251,1710658469759,-2000.0,0.00014,2]
[319322252,1710658470635,-475.0362242,0.000137,2]
[319322253,1710658470655,-1524.9637758,0.00014,2]
[319322254,1710658478446,-1346.5202,0.00014,2]
[319322255,1710658488793,-15000.0,0.00014,2]
[319322256,1710658544469,531.85,0.00011906,2]
[319322258,1710658854995,543.95291501,0.00012748,2]
[319322260,1710659008223,616.46,0.00011655,2]
[319322262,1710659076577,-2054.67362009,0.00013492,2]
[319322263,1710659076601,-192.51,0.00013493,2]
[319322264,1710659076625,-168.23,0.00013564,2]
[319322265,1710659076651,-4584.58637991,0.00013574,2]
[319322266,1710659090216,-517.02362009,0.00013574,2]
[319322267,1710659090243,-150.0,0.00013576,2]
[319322268,1710659090271,-300.0,0.00013576,2]
[319322269,1710659090298,-14032.97637991,0.00013577,2]
[319322270,1710659120213,272.52052024,0.00013,3]
[319322271,1710659124145,-1500.0,0.00013577,2]
[319322272,1710659150558,-350.0,0.000135,4]
[319322273,1710659150583,-8367.02362009,0.00013577,2]
[319322274,1710659150609,-250.0,0.00013577,2]
[319322275,1710659150634,-209.73,0.00013593,2]
[319322276,1710659150659,-273.29,0.00013605,2]
[319322277,1710659150695,-1180.7507,0.00013665,2]
[319322278,1710659150720,-250.0,0.00013699,2]
[319322279,1710659150745,-816.44,0.00013699,2]
[319322280,1710659150770,-159.81099324,0.00013799,2]
[319322281,1710659150796,-616.46,0.00013919,2]
[319322282,1710659150821,-705.29,0.00013937,2]
[319322283,1710659150847,-705.29,0.00013989,2]
[319322284,1710659150875,-395.4479242,0.00014,2]
[319322285,1710659150900,-250.0,0.00014,2]
[319322286,1710659150925,-150.0,0.00014,2]
[319322287,1710659150950,-150.0,0.00014,2]
[319322288,1710659150975,-170.46676247,0.00014,2]
[319322290,1710659392849,361.93382086,0.00011998,2]
[319322291,1710659416780,361.57881522,0.00011998,2]
[319322299,1710659431929,-401.02135479,0.000136,2]
[319322303,1710659431988,-33.75715283,0.000136,2]
[319322304,1710659431999,-4125.31039887,0.00013681,2]
[319322305,1710659432010,-1000.0,0.00013681,2]
[319322306,1710659432021,-860.29132525,0.00013681,2]
[319322307,1710659432032,-1308.43796656,0.00013681,2]
[319322308,1710659432153,-2000.16839021,0.00013681,2]
[319322309,1710659432164,-744.64168612,0.00013681,2]
[319322310,1710659432178,-473.60372956,0.00013681,2]
[319322311,1710659432191,-3250.05,0.00013681,2]
[319322312,1710659432214,-9664.13703528,0.00013681,2]
[319322313,1710659432242,-473.35946815,0.00013681,2]
[319322314,1710659432251,-31.33474461,0.00013698,2]
[319322325,1710659432443,-0.01898115,0.00013698,2]
[319322329,1710659432454,-497.87860396,0.00013698,2]
[319322332,1710659432463,-250.0,0.00013699,2]
[319322334,1710659432472,-229.31132584,0.00013711,2]
[319322336,1710659432483,-20.68867416,0.00013711,2]
[319322338,1710659432492,-701.54363641,0.00013717,2]
[319322341,1710659432503,-79.81636359,0.00013717,2]
[319322343,1710659432512,-206.4,0.00013717,2]
[319322344,1710659432521,-300.0,0.000139,5]
[319322346,1710659432531,-7.80323753,0.00014,2]
[319322348,1710659432540,-520.22,0.00014,2]
[319322351,1710659432550,-589.76039888,0.00014,2]
[319322353,1710659432564,-298.69050621,0.00014,2]
[319322356,1710659432586,-6500.0,0.00014,2]
[319322376,1710659437944,-709.08266212,0.00014,2]
[319322382,1710659437996,-561.37181,0.00014,2]
[319322383,1710659438008,-649.45,0.00014,2]
[319322384,1710659438020,-3425.0,0.00014,2]
[319322385,1710659438063,-310.24010705,0.00014,2]
[319322386,1710659438076,-6512.30934687,0.00014,2]
[319322387,1710659438086,-455.0028404,0.00014,2]
[319322388,1710659438095,-700.0,0.00014,5]
[319322389,1710659438105,-250.58993064,0.00014027,2]
[319322390,1710659438114,-250.58993064,0.00014027,2]
[319322391,1710659438123,-250.58993064,0.00014027,2]
[319322392,1710659438134,-166.93,0.0001404,2]
[319322393,1710659438143,-705.29,0.0001404,2]
[319322394,1710659438152,-705.29,0.00014091,2]
[319322395,1710659438162,-1000.0,0.000141,5]
[319322396,1710659438171,-705.29,0.00014143,2]
[319322397,1710659438180,-705.29,0.00014194,2]
[319322398,1710659438189,-1400.0,0.000142,5]
[319322399,1710659438201,-705.29,0.00014245,2]
[319322400,1710659438210,-499.99,0.00014245,2]
[319322401,1710659438220,-250.0,0.00014274,2]
[319322402,1710659438229,-705.29,0.00014297,2]
[319322403,1710659438239,-1700.0,0.000143,5]
[319322404,1710659438248,-705.29,0.00014348,2]
[319322405,1710659438261,-705.29,0.00014399,2]
[319322406,1710659438270,-300.0,0.000144,5]
[319322407,1710659438280,-705.29,0.00014451,2]
[319322408,1710659438290,-705.29,0.00014502,2]
[319322409,1710659438299,-13394.39124373,0.00014546,2]
[319322410,1710659438585,-152.0,0.00014547,2]
[319322412,1710659438596,-390.19283314,0.00014548,2]
[319322414,1710659438605,-181.5530919,0.00014548,2]
[319322416,1710659438614,-705.29,0.00014553,2]
[319322418,1710659438623,-152.0,0.00014575,2]
[319322419,1710659438632,-178.442931,0.00014579,2]
[319322420,1710659438641,-511.0598596,0.0001459,2]
[319322421,1710659438651,-2822.467,0.00014591,2]
[319322422,1710659438660,-10316.46336534,0.00014591,2]
[319322423,1710659438673,-2399.64673466,0.00014591,2]
[319322424,1710659438682,-4988.6509,0.00014591,2]
[319322425,1710659438691,-3610.30236653,0.00014591,2]
[319322426,1710659438703,-89.16393347,0.00014591,2]
[319322427,1710659438713,-152.0,0.00014602,2]
[319322428,1710659438722,-705.29,0.00014605,2]
[319322429,1710659438731,-80.54606653,0.0001463,2]
[319322430,1710659438750,-71.45393347,0.0001463,2]
[319322431,1710659438760,-705.29,0.00014656,2]
[319322432,1710659438769,-152.0,0.00014657,2]
[319322433,1710659438779,-152.0,0.00014684,2]
[319322434,1710659438789,-414.68,0.00014685,2]
[319322435,1710659438798,-150.66,0.00014685,2]
[319322436,1710659438807,-516.4,0.00014685,2]
[319322437,1710659438819,-150.0,0.00014685,2]
[319322438,1710659438828,-350.51,0.00014685,2]
[319322439,1710659438838,-150.0,0.00014685,2]
[319322440,1710659438847,-150.86,0.00014685,2]
[319322441,1710659438856,-150.0,0.00014685,2]
[319322442,1710659438865,-346.78,0.00014685,2]
[319322443,1710659438874,-346.78,0.00014685,2]
[319322444,1710659438884,-346.78,0.00014685,2]
[319322445,1710659438893,-346.78,0.00014685,2]
[319322446,1710659438902,-346.78,0.00014685,2]
[319322447,1710659438912,-346.78,0.00014685,2]
[319322448,1710659438921,-346.78,0.00014685,2]
[319322449,1710659438930,-100000.0,0.00014691,2]
[319322450,1710659438940,-500.0,0.00014691,2]
[319322451,1710659438950,-1235.9734,0.00014691,2]
[319322452,1710659438959,-956.1171,0.00014691,2]
[319322453,1710659438969,-333.0,0.00014701,2]
[319322454,1710659438979,-705.29,0.00014707,2]
[319322455,1710659438996,-152.0,0.00014712,2]
[319322456,1710659439008,-152.0,0.00014739,2]
[319322457,1710659439018,-705.29,0.00014759,2]
[319322458,1710659439028,-152.0,0.00014767,2]
[319322459,1710659439037,-152.0,0.00014794,2]
[319322460,1710659439047,-248.607873,0.00014795,2]
[319322461,1710659439057,-705.29,0.0001481,2]
[319322462,1710659439070,-1000.0,0.00014813,2]
[319322463,1710659439080,-2500.0,0.00014813,2]
[319322464,1710659439089,-152.0,0.00014821,2]
[319322465,1710659439099,-1000.0,0.00014842,2]
[319322466,1710659439109,-154.0,0.00014849,2]
[319322467,1710659439119,-705.29,0.00014861,2]
[319322468,1710659439129,-154.0,0.00014876,2]
[319322469,1710659439139,-5000.0,0.000149,2]
[319322470,1710659439149,-154.06067581,0.000149,2]
[319322471,1710659439159,-493.19077357,0.000149,2]
[319322472,1710659439168,-831.46193744,0.000149,2]
[319322473,1710659439178,-154.0,0.00014904,2]
[319322474,1710659439188,-705.29,0.00014913,2]
[319322475,1710659439202,-159.81099323,0.00014913,2]
[319322476,1710659439211,-190.22733088,0.00014913,2]
[319322477,1710659439221,-154.0,0.00014931,2]
[319322478,1710659439232,-154.0,0.00014958,2]
[319322479,1710659439242,-154.0,0.00014986,2]
[319322480,1710659439253,-192.89474936,0.0001499,2]
[319322481,1710659439263,-192.89474936,0.0001499,2]
[319322482,1710659439274,-155.0,0.00014998,2]
[319322483,1710659439284,-204.88114341,0.00014998,2]
[319322484,1710659439294,-961.87537337,0.00014998,2]
[319322485,1710659439304,-5504.19849091,0.00014998,2]
[319322486,1710659439316,-972.05065311,0.00014998,2]
[319322487,1710659439326,-3060.38498379,0.00014998,2]
[319322488,1710659439335,-403.29782879,0.00014998,2]
[319322489,1710659439345,-782.55058005,0.00014998,2]
[319322490,1710659439356,-4375.64935146,0.00014999,2]
[319322491,1710659439366,-5833.39,0.00014999,2]
[319322492,1710659439376,-1550.0,0.00015,3]
[319322493,1710659439386,-111656.71807899,0.00015,2]
[319322494,1710659439400,-358.9537836,0.00015,2]
[319322495,1710659439412,-3864617.49415722,0.00015,2]
[319322496,1710659439424,-303987.53306762,0.00015,2]
[319322497,1710659439433,-150.068089,0.00015,4]
[319322498,1710659439444,-12468.99206243,0.00015,2]
[319322499,1710659439455,-154.0,0.00015013,2]
[319322500,1710659439464,-154.0,0.00015041,2]
[319322501,1710659439474,-154.06067581,0.00015067,2]
[319322502,1710659439483,-154.0,0.00015068,2]
[319322503,1710659439493,-154.0,0.00015095,2]
[319322504,1710659439502,-154.0,0.00015123,2]
[319322505,1710659439512,-154.0,0.0001515,2]
[319322506,1710659439522,-493.19077357,0.0001515,2]
[319322507,1710659439531,-150.0,0.00015161,2]
[319322508,1710659439540,-420.082,0.00015176,2]
[319322509,1710659439550,-154.0,0.00015178,2]
[319322510,1710659439561,-1465.65775762,0.000152,2]
[319322511,1710659439571,-154.0,0.00015205,2]
[319322512,1710659439580,-12199.45679534,0.00015206,2]
[319322513,1710659439589,-175.0,0.00015232,2]
[319322514,1710659439599,-154.06067581,0.00015233,2]
[319322515,1710659439609,-401492.91630971,0.0001525,2]
[319322516,1710659439622,-622.21983407,0.0001525,2]
[319322518,1710659439829,-10936.45671196,0.0001525,2]
[319322519,1710659439840,-904.95312838,0.0001525,2]
[319322521,1710659439851,-3437.70000007,0.0001525,2]
[319322524,1710659439870,-1023.37646069,0.0001525,2]
[319322526,1710659439881,-380.83107744,0.0001525,2]
[319322548,1710659440080,-4580.4495951,0.0001525,2]
[319322550,1710659440094,-6379.161553,0.0001525,2]
[319322553,1710659440107,-4070.33262535,0.0001525,2]
[319322555,1710659440119,-8678.78233498,0.0001525,2]
[319322557,1710659440130,-665.213285,0.0001525,2]
[319322558,1710659440141,-10329.3,0.0001525,2]
[319322559,1710659440176,893.79,0.00011767,2]
[319322560,1710659440188,-5425.51525875,0.0001525,2]
[319322561,1710659440203,-1062.35456196,0.0001525,2]
[319322562,1710659440215,-425.39776783,0.0001525,2]
[319322563,1710659440239,-300.0,0.000145,5]
[319322564,1710659440248,-1623.71189757,0.0001525,2]
[319322565,1710659441427,-893.79,0.00014031,2]
[319322566,1710659441437,-199.68436112,0.00014998,2]
[319322567,1710659441488,-355.42387692,0.00014998,2]
[319322568,1710659441499,-91.39407256,0.00014998,2]
[319322569,1710659441509,-6403.70592744,0.0001525,2]
[319322570,1710659441547,-6514.4,0.0001525,2]
[319322571,1710659441559,-394.077487,0.0001525,2]
[319322572,1710659441571,-1537.56986311,0.0001525,2]
[319322573,1710659441659,-1977.7965244,0.0001525,2]
[319322605,1710659443080,-5535.34588262,0.00014591,2]
[319322606,1710659443092,-3028.09893956,0.00014591,2]
[319322607,1710659443104,-10707.25327782,0.00014591,2]
[319322608,1710659443113,-300.0,0.000146,5]
[319322609,1710659443122,-91826.3016128,0.0001525,2]
[319322610,1710659443206,-44670.28274685,0.0001525,2]
[319322611,1710659443268,-10368.7453244,0.0001525,2]
[319322612,1710659443281,-17286.85801484,0.0001525,2]
[319322613,1710659443293,-17344.85599036,0.0001525,2]
[319322614,1710659443304,-469.66578867,0.0001525,2]
[319322615,1710659443328,-7815.50022,0.0001525,2]
[319322616,1710659443339,-8474.29076964,0.0001525,2]
[319322623,1710659447122,-253.6558425,0.000147,5]
[319322624,1710659447133,-46.3441575,0.000147,5]
[319322625,1710659447143,-333.8886645,0.000148,5]
[319322626,1710659447363,-366.1113355,0.000148,5]
[319322627,1710659447374,-2917.16263883,0.000149,2]
[319322628,1710659447394,-1138.50343829,0.000149,2]
[319322629,1710659447403,-373.8809731,0.00015249,2]
[319322630,1710659447413,-294.3504502,0.00015249,2]
[319322631,1710659447422,-150.44628204,0.00015249,2]
[319322632,1710659447433,-333.5246748,0.00015249,2]
[319322633,1710659447443,-155.0,0.00015249,2]
[319322634,1710659447453,-267800.51030148,0.0001525,2]
[319322635,1710659447464,-1026.6,0.0001525,2]
[319322636,1710659447475,-648.21,0.0001525,2]
[319322637,1710659447486,-123529.64380714,0.0001525,2]
[319322638,1710659447497,-35184.5048336,0.0001525,2]
[319322639,1710659447528,-131015.78063834,0.0001525,2]
[319322640,1710659447555,-347.86077815,0.0001525,2]
[319322641,1710659447568,-255.49470982,0.0001525,2]
[319322642,1710659447590,-370.45586332,0.0001525,2]
[319322647,1710659448820,-865.725,0.0001525,2]
[319322660,1710659993138,804.41,0.00011253,2]
[319322663,1710660258507,-157.76843315,0.00013125,2]
[319322664,1710660258537,-1235.34375995,0.00013125,2]
[319322665,1710660258565,-378.65,0.00013126,2]
[319322666,1710660258593,-1558.39,0.00013126,2]
[319322667,1710660258620,-905.37,0.00013126,2]
[319322669,1710660314829,-1323.03,0.00013133,2]
[319322670,1710660314853,-150.0,0.00013138,2]
[319322671,1710660314877,-5488.45,0.00013139,2]
[319322672,1710660389929,-517.15581257,0.00013152,2]
[319322673,1710660389954,-250.0,0.00013153,2]
[319322674,1710660389980,-625.09,0.00013153,2]
[319322675,1710660425537,764.18,0.00011294,2]
[319322705,1710660632099,-545.14005064,0.00013165,2]
[319322707,1710660632271,-3626.25717377,0.00013165,2]
[319322708,1710660632281,-438.55552019,0.00013166,2]
[319322709,1710660632290,-277.63859186,0.00013166,2]
[319322710,1710660632299,-277.63859186,0.00013166,2]
[319322711,1710660632308,-277.63859186,0.00013166,2]
[319322712,1710660632317,-166.94,0.00013167,2]
[319322713,1710660632326,-150.0,0.00013173,2]
[319322714,1710660632335,-23900.0,0.00013174,2]
[319322715,1710660632345,-3658.63,0.00013193,2]
[319322716,1710660632354,-769.40841776,0.000134,2]
[319322717,1710660632363,-246.85,0.00013406,2]
[319322718,1710660632373,-246.85,0.00013455,2]
[319322719,1710660632382,-165.48517815,0.0001349,2]
[319322720,1710660632392,-246.85,0.00013505,2]
[319322721,1710660632401,-374.91,0.00013509,2]
[319322722,1710660632411,-14258.33211657,0.00013516,2]
[319322723,1710660632434,-300.0,0.00013516,2]
[319322724,1710660632450,-1412.8389805,0.00013516,2]
[319322725,1710660632497,-519.09140173,0.00013516,2]
[319322726,1710660632509,-298.78959945,0.00013516,2]
[319322727,1710660632521,-29480.50700567,0.00013516,2]
[319322729,1710660632530,-499.99,0.00013517,2]
[319322730,1710660632540,-958.7,0.00013517,2]
[319322731,1710660632549,-150.99,0.00013517,2]
[319322732,1710660632561,-246.85,0.00013554,2]
[319322733,1710660632571,-764.18,0.00013558,2]
[319322734,1710660632581,-246.85,0.00013603,2]
[319322735,1710660632591,-166.93,0.00013629,2]
[319322736,1710660632602,-246.85,0.00013653,2]
[319322737,1710660632611,-408.22,0.00013699,2]
[319322738,1710660632620,-250.0,0.00013699,2]
[319322739,1710660632630,-500.0,0.00013699,2]
[319322741,1710660632640,-2027.47,0.00013699,2]
[319322742,1710660632650,-246.85,0.00013702,2]
[319322744,1710660632661,-246.85,0.00013752,2]
[319322745,1710660632671,-246.85,0.00013801,2]
[319322747,1710660632682,-246.85,0.0001385,2]
[319322749,1710660632695,-246.85,0.000139,2]
[319322750,1710660632705,-165.48517815,0.00013914,2]
[319322752,1710660632715,-246.85,0.00013949,2]
[319322754,1710660632725,-246.85,0.00013999,2]
[319322756,1710660632734,-556.77370347,0.00014045,2]
[319322758,1710660632743,-246.85,0.00014048,2]
[319322760,1710660632752,-246.85,0.00014097,2]
[319322762,1710660632761,-246.85,0.00014147,2]
[319322764,1710660632770,-246.85,0.00014196,2]
[319322765,1710660632779,-246.85,0.00014246,2]
[319322767,1710660632788,-246.85,0.00014295,2]
[319322769,1710660632797,-165.48517815,0.00014338,2]
[319322771,1710660632807,-473.21,0.00014339,2]
[319322773,1710660632816,-246.85,0.00014344,2]
[319322775,1710660632825,-250.0,0.0001435,2]
[319322777,1710660632834,-150.0,0.0001435,2]
[319322779,1710660632843,-150.0,0.0001435,2]
[319322781,1710660632852,-473.21,0.00014391,2]
[319322783,1710660632861,-473.21,0.00014444,2]
[319322785,1710660632870,-556.77370346,0.00014491,2]
[319322787,1710660632879,-473.21,0.00014497,2]
[319322789,1710660632888,-152.0,0.00014547,2]
[319322791,1710660632898,-473.21,0.0001455,2]
[319322793,1710660632909,-152.0,0.00014575,2]
[319322795,1710660632918,-54921.62404481,0.00014591,2]
[319322797,1710660632929,-472.52936896,0.00014591,2]
[319322799,1710660632942,-2934.42178623,0.00014591,2]
[319322801,1710660632952,-1000.0,0.000146,2]
[319322802,1710660632961,-2500.0,0.000146,2]
[319322803,1710660632971,-152.0,0.00014602,2]
[319322804,1710660632980,-473.21,0.00014603,2]
[319322805,1710660632989,-152.0,0.0001463,2]
[319322806,1710660632999,-267.40345174,0.00014655,2]
[319322807,1710660633010,-205.80654826,0.00014655,2]
[319322808,1710660633020,-152.0,0.00014657,2]
[319322809,1710660633029,-152.0,0.00014684,2]
[319322810,1710660633038,-516.4,0.00014685,2]
[319322811,1710660633048,-186.033452,0.00014685,2]
[319322812,1710660633059,-228.646548,0.00014685,2]
[319322813,1710660633069,-150.0,0.00014685,2]
[319322814,1710660633079,-150.0,0.00014685,2]
[319322815,1710660633088,-173.24966718,0.00014685,2]
[319322867,1710660638157,-177.26033282,0.00014685,2]
[319322870,1710660638167,-141.23967218,0.00014685,2]
[319322874,1710660638179,-9.62032782,0.00014685,2]
[319322877,1710660638188,-150.0,0.00014685,2]
[319322880,1710660638199,-150.66,0.00014685,2]
[319322881,1710660638207,-346.78,0.00014685,2]
[319322883,1710660638216,-346.78,0.00014685,2]
[319322885,1710660638226,-2165.1359,0.000147,2]
[319322886,1710660638234,-25853.82807766,0.000147,2]
[319322887,1710660638246,-6874.8,0.000147,2]
[319322888,1710660638257,-4534.67246,0.000147,2]
[319322889,1710660638284,-32433.99999999,0.000147,2]
[319322890,1710660638294,-253.70482749,0.000147,2]
[319322891,1710660638564,-1853.52790634,0.000147,2]
[319322892,1710660638575,-650.0,0.000147,2]
[319322893,1710660638586,-124495.5832201,0.000147,2]
[319322894,1710660638599,-9408.20579785,0.000147,2]
[319322895,1710660638610,-1075.62231894,0.000147,2]
[319322896,1710660638651,-604.62393,0.00014085,2]
[319322898,1710660638663,-666.93607,0.00014085,2]
[319322900,1710660638673,-29178.69853841,0.000147,2]
[319322903,1710660638697,-4110.37,0.000147,2]
[319322905,1710660638715,-1180.00004,0.000147,2]
[319322907,1710660638734,-1965.31955085,0.000147,2]
[319322908,1710660638746,-1131.66726237,0.000147,2]
[319322910,1710660638755,-473.21,0.00014708,2]
[319322912,1710660638764,-152.0,0.00014712,2]
[319322913,1710660638774,-956.1171,0.00014731,2]
[319322915,1710660638783,-2425.3774,0.00014731,2]
[319322916,1710660638792,-152.0,0.00014739,2]
[319322917,1710660638801,-473.21,0.00014761,2]
[319322918,1710660638811,-165.48517815,0.00014761,2]
[319322919,1710660638820,-152.0,0.00014767,2]
[319322920,1710660638829,-152.0,0.00014794,2]
[319322921,1710660638839,-248.607873,0.00014795,2]
[319322922,1710660638847,-333.0,0.00014797,2]
[319322923,1710660638856,-625.09,0.00014797,2]
[319322924,1710660638866,-10600.23518648,0.000148,2]
[319323112,1710660641791,-333.7,0.000148,2]
[319323114,1710660641804,-303.27304,0.000148,2]
[319323120,1710660641852,-630.04,0.000148,2]
[319323128,1710660641914,-5676.49030435,0.000148,2]
[319323133,1710660641977,-605.52,0.000148,2]
[319323141,1710660642038,-4243.62289259,0.000148,2]
[319323143,1710660642052,-1052.07874163,0.000148,2]
[319323145,1710660642063,-640.74715966,0.000148,2]
[319323268,1710660643180,-398.36457592,0.000148,2]
[319323274,1710660643319,-14964.30717594,0.000148,2]
[319323275,1710660643334,-314.0004,0.000148,2]
[319323276,1710660643346,-7414.96368298,0.000148,2]
[319323277,1710660643358,-3261.98760201,0.000148,2]
[319323278,1710660643373,-11692.25010185,0.000148,2]
[319323279,1710660643386,-37868.41913659,0.000148,2]
[319323280,1710660643395,-473.21,0.00014814,2]
[319323281,1710660643405,-152.0,0.00014821,2]
[319323282,1710660643415,-25967.3745,0.00014831,2]
[319323283,1710660643424,-152.0,0.00014849,2]
[319323284,1710660643433,-473.21,0.00014867,2]
[319323285,1710660643444,-152.0,0.00014876,2]
[319323286,1710660643460,-1000.0,0.00014899,2]
[319323287,1710660643469,-152.0,0.00014904,2]
[319323288,1710660643480,-473.21,0.0001492,2]
[319323289,1710660643490,-164.0,0.00014931,2]
[319323290,1710660643499,-150.0,0.0001494,2]
[319323291,1710660643508,-473.21,0.00014972,2]
[319323292,1710660643517,-2930.08904628,0.00015,2]
[319323293,1710660643579,-2335.05906932,0.00015,2]
[319323295,1710660643589,-1550.0,0.00015,3]
[319323296,1710660643599,-473.21,0.00015025,2]
[319323297,1710660643608,-473.21,0.00015078,2]
[319323298,1710660643619,-473.21,0.00015131,2]
[319323299,1710660643628,-190.22733088,0.0001515,2]
[319323300,1710660643638,-376.44100056,0.0001515,2]
[319323301,1710660643648,-500.0,0.0001515,2]
[319323303,1710660643661,-127.96999349,0.00015171,2]
[319323304,1710660643673,-26.09068232,0.00015171,2]
[319323305,1710660643682,-473.21,0.00015184,2]
[319323306,1710660643692,-165.48517815,0.00015185,2]
[319323307,1710660643704,-1411.01391601,0.00015189,2]
[319323308,1710660643714,-376.44100055,0.00015195,2]
[319323310,1710660643724,-180.14502318,0.00015198,2]
[319323311,1710660643733,-374.91,0.00015198,2]
[319323312,1710660643743,-1411.01391591,0.00015208,2]
[319323313,1710660643752,-150.0,0.00015223,2]
[319323314,1710660643762,-150.0,0.00015225,2]
[319323315,1710660643771,-150.0,0.00015225,2]
[319323316,1710660643780,-150.0,0.00015225,2]
[319323317,1710660643790,-1500.0,0.00015225,2]
[319323319,1710660643799,-698.9348834,0.00015227,2]
[319323320,1710660643811,-712.07903251,0.00015227,2]
[319323321,1710660643820,-150.0,0.00015228,2]
[319323322,1710660643829,-150.0,0.00015229,2]
[319323323,1710660643839,-300.0,0.00015231,2]
[319323324,1710660643848,-150.0,0.00015235,2]
[319323325,1710660643857,-473.21,0.00015236,2]
[319323326,1710660643866,-150.0,0.00015238,2]
[319323327,1710660643876,-150.0,0.00015238,2]
[319323328,1710660643886,-150.0,0.0001524,2]
[319323329,1710660643896,-376.44100055,0.0001524,2]
[319323330,1710660643906,-192.89474936,0.0001524,2]
[319323331,1710660643917,-150.0,0.00015241,2]
[319323332,1710660643932,-5000.0,0.00015242,2]
[319323333,1710660643944,-2703.77738476,0.00015242,2]
[319323334,1710660643955,-328.79384906,0.00015242,2]
[319323335,1710660643964,-1411.01391591,0.00015247,2]
[319323336,1710660643973,-509.39265544,0.00015248,2]
[319323337,1710660643982,-775.74900842,0.00015249,2]
[319323338,1710660643991,-660.49304242,0.00015249,2]
[319323339,1710660644001,-339957.90986726,0.0001525,2]
[319323340,1710660644027,-11794.80361188,0.0001525,2]
[319323341,1710660644039,-3097.70689365,0.0001525,2]
[319323342,1710660644052,-8410.41191506,0.0001525,2]
[319323343,1710660644063,-12703.82184166,0.0001525,2]
[319323344,1710660644074,-321.69071645,0.0001525,2]
[319323345,1710660644085,-3623.32246137,0.0001525,10]
[319323346,1710660644097,-150.0,0.0001525,2]
[319323347,1710660644108,-3000.0,0.0001525,2]
[319323348,1710660644120,-150.0,0.00015252,2]
[319323349,1710660644131,-150.0,0.00015258,2]
[319323350,1710660644142,-150.0,0.00015261,2]
[319323351,1710660644153,-150.0,0.00015264,2]
[319323352,1710660644164,-150.0,0.00015264,2]
[319323353,1710660644175,-1411.01391591,0.00015266,2]
[319323354,1710660644185,-150.0,0.00015268,2]
[319323355,1710660644196,-11508.31316073,0.0001527,2]
[319323356,1710660644374,-13739.87629893,0.0001527,2]
[319323357,1710660644392,-2378.62101966,0.0001527,2]
[319323358,1710660644406,-2875.94353848,0.0001527,2]
[319323359,1710660644419,-17041.70832797,0.0001527,2]
[319323360,1710660644432,-2479.51850197,0.0001527,2]
[319323361,1710660644445,-150.0,0.00015271,2]
[319323362,1710660644462,-150.0,0.00015271,2]
[319323363,1710660644472,-150.0,0.00015273,2]
[319323364,1710660644483,-150.0,0.00015273,2]
[319323365,1710660644493,-150.0,0.00015274,2]
[319323366,1710660644504,-301.49153736,0.00015276,2]
[319323367,1710660644515,-150.0,0.00015277,2]